[Event "Israeli Championship 2022"]
[Site "Yosiah Arad"]
[Date "2022.12.10"]
[Round "6.5"]
[White "Zanan, Evgeny"]
[Black "Gorodetzky, David"]
[Result "1/2-1/2"]
[ECO "C78"]
[WhiteElo "2485"]
[BlackElo "2495"]
[Annotator "TA"]
[PlyCount "68"]
[EventDate "2022.12.05"]
[EventType "swiss"]
[EventCountry "ISR"]
[SourceTitle "playchess.com"]
[Source "ChessBase"]
[SourceQuality "1"]
[TimeControl "40/5400+30:1800+30"]

{[%evp 13,68,35,33,29,25,32,56,56,68,52,64,56,54,50,56,64,52,52,37,49,40,59,62,29,28,39,37,36,29,35,47,28,28,33,31,33,22,23,22,30,34,33,24,33,39,0,37,0,38,20,23,18,22,0,20,0,27]} 1. e4 {[%emt 0:03:20]} e5 {[%emt 0:01:21]} 2. Nf3 {[%emt 0:01:59]} Nc6 {[%emt 0:00:04]} 3. Bb5 {[%emt 0:00:04]} a6 {[%emt 0:00:12]} 4. Ba4 {[%emt 0:00:04]} Nf6 {[%emt 0:00:36]} 5. O-O {[%emt 0:00:15]} Bc5 {[%emt 0:00:42]} 6. c3 {[%emt 0:00:13]} O-O {[%emt 0:00:23]} 7. d4 {[%emt 0:00:10]} Ba7 {[%emt 0:00:43]} 8. Bg5 {[%emt 0:01:07] C78: Ruy Lopez: Archangelsk and Möller Defences.} h6 {[%emt 0:01:22]} 9. Bh4 {[%emt 0:02:29]} d6 {[%emt 0:00:15]} 10. Bxc6 {[%emt 0:01:56] White is slightly better.} bxc6 {[%emt 0:01:46]} 11. dxe5 {[%emt 0:00:10]} dxe5 {[%emt 0:00:08]} 12. Nxe5 {[%emt 0:00:44]} Qe7 {[%emt 0:06:51]} 13. Nf3 {[%emt 0:00:31] [#] And now e5 would win.} Qxe4 {[%emt 0:03:15]} 14. Bxf6 {[%emt 0:00:17]} gxf6 {[%emt 0:00:03]} 15. Nbd2 {[%emt 0:00:24]} Qf4 {[%emt 0:10:07]} 16. Re1 {[%emt 0:01:12]} Bf5 {[%emt 0:06:29] Inhibits Re4.} 17. Nb3 {[%emt 0:01:26] [#]} Rfd8 $146 {[%emt 0:10:52]} ({Predecessor:} 17... Rfe8 18. Qc1 Rxe1+ 19. Qxe1 c5 20. Qd2 Qxd2 21. Nbxd2 Be6 22. c4 a5 23. b3 Kg7 {1-0 (89) Dragnev,V (2548)-Kaczur,F (2480) Hungary 2021}) 18. Nfd4 {[%emt 0:08:00] g3 is the strong threat.} c5 {[%emt 0:11:22]} 19. g3 {[%emt 0:05:54]} Qg5 {[%emt 0:02:00]} 20. h4 {[%emt 0:16:55]} Qg6 {[%emt 0:01:10]} 21. Nxf5 {[%emt 0:00:51]} Qxf5 {[%emt 0:00:03]} 22. Qb1 {[%emt 0:06:00]} (22. Qc1 {looks sharper.} Kg7 23. c4 Bb6 24. Kg2) 22... Qxb1 {[%emt 0:07:05]} 23. Raxb1 {[%emt 0:00:18]} c4 {[%emt 0:00:14]} 24. Na5 {[%emt 0:00:33]} Rd2 {[%emt 0:03:41]} 25. Rf1 {[%emt 0:02:05]} ({Don't play} 25. Nxc4 Bxf2+ 26. Kf1 Bxe1 27. Nxd2 Bxg3 $17) 25... Re8 {[%emt 0:03:14]} 26. Nxc4 {[%emt 0:03:33]} Rd3 {[%emt 0:01:22]} 27. Kg2 {[%emt 0:20:36]} Re4 {[%emt 0:01:45]} 28. Na5 {[%emt 0:00:56] aiming for Nb3.} Re2 {[%emt 0:06:46]} 29. Nc4 {[%emt 0:16:52]} Re4 {[%emt 0:02:52]} 30. Na5 {[%emt 0:03:45] Threatens to win with Nb3.} Rd2 {[%emt 0:09:26]} 31. Nb3 {[%emt 0:00:11]} Rc2 {[%emt 0:00:44]} 32. Nc1 {[%emt 0:02:10]} Rd2 {[%emt 0:02:12] The position is equal.} 33. Nb3 {[%emt 0:00:10]} Rc2 {[%emt 0:00:37]} 34. Nc1 {[%emt 0:00:28]} Rd2 {[%emt 0:02:23] Weighted Error Value: White=0.09 (flawless) /Black=0.03 (flawless)} 1/2-1/2

[Event "Israeli Championship 2022"]
[Site "Yosiah Arad"]
[Date "2022.12.10"]
[Round "6.7"]
[White "Dvoirys, Semen I."]
[Black "Yaniv, Yuval"]
[Result "1-0"]
[ECO "B69"]
[WhiteElo "2461"]
[BlackElo "2343"]
[Annotator "TA"]
[PlyCount "113"]
[EventDate "2022.12.05"]
[EventType "swiss"]
[EventCountry "ISR"]
[SourceTitle "playchess.com"]
[Source "ChessBase"]
[SourceQuality "1"]
[TimeControl "40/5400+30:1800+30"]

{[%evp 21,113,37,47,28,50,-20,21,6,72,44,37,1,2,0,0,0,0,0,0,-30,15,0,0,-8,0,0,0,-8,-8,-17,-10,-31,-35,-109,-106,-145,-159,-229,-225,-228,-108,-126,-68,-60,-85,-74,-53,-88,-31,-54,0,-14,0,0,0,0,5,6,18,19,434,427,445,449,434,452,453,442,448,452,423,445,434,438,404,404,472,459,857,804,1727,1818,1761,1388,6087,6087,6094,6087,5695,5869,5140,5123,5824,5690]} 1. e4 {[%emt 0:00:03]} c5 {[%emt 0:00:21]} 2. Nf3 {[%emt 0:00:05]} d6 {[%emt 0:00:15]} 3. d4 {[%emt 0:00:05]} cxd4 {[%emt 0:00:10]} 4. Nxd4 {[%emt 0:00:04]} Nf6 {[%emt 0:00:12]} 5. Nc3 {[%emt 0:00:02]} Nc6 {[%emt 0:00:25]} 6. Bg5 {[%emt 0:00:13]} e6 {[%emt 0:00:35]} 7. Qd2 {[%emt 0:00:05]} a6 {[%emt 0:00:11]} 8. O-O-O {[%emt 0:00:10]} Bd7 {[%emt 0:00:10]} 9. f4 {[%emt 0:00:06]} Be7 {[%emt 0:00:35]} 10. Nf3 {[%emt 0:00:08]} b5 {[%emt 0:00:13]} 11. Bxf6 {[%emt 0:00:47]} gxf6 {[%emt 1:32:53]} 12. g4 {[%emt 0:00:52] B69: Sicilian: Richter-Rauzer: 7...a6 8 0-0-0 Bd7 9 f4 Be7 10 Nf3 b5 11 Bxf6.} Qb6 {[%emt 0:00:00] [#]} 13. g5 $146 {[%emt 0:33:13]} (13. Kb1 $14) ({Predecessor:} 13. h4 Na5 14. Nd4 Rc8 15. f5 b4 16. Nb1 b3 17. axb3 Qxd4 18. Qxa5 Qxe4 19. Bd3 Qe3+ 20. Qd2 Qxd2+ 21. Rxd2 a5 22. Nc3 Rb8 23. Re1 Kf8 24. fxe6 fxe6 25. Rf2 Rb4 26. Bc4 {½-½ (26) De la Paz Perdomo,F (2462)-Delgado Ramirez,N (2443) Varadero 2000}) 13... O-O-O {[%emt 0:00:00]} 14. h4 {[%emt 0:05:36] The position is equal.} Be8 {[%emt 0:00:00]} (14... h6 $11 {keeps the balance.}) 15. Bh3 {[%emt 0:10:51] White is more active.} Kb8 $1 {[%emt 0:00:00]} 16. Qe2 {[%emt 0:00:12]} (16. f5 $5 {[%cal Rf5e6]}) 16... Na5 {[%emt 0:00:00]} 17. gxf6 {[%emt 0:08:31]} (17. a3 {simplifies} Nc4 18. Nd2 Nxd2 19. Rxd2 a5 20. Bg2) 17... Bxf6 {[%emt 0:00:00]} 18. e5 {[%emt 0:00:44] Against b4} dxe5 {[%emt 0:00:00]} 19. Ne4 {[%emt 0:00:11]} Be7 {[%emt 0:00:00]} 20. Neg5 {[%emt 0:00:39]} Qc7 {[%emt 0:00:00] And now ...h6 would win.} (20... exf4 $2 21. Rxd8+ Qxd8 22. Qe5+ Ka7 23. Qxh8 $18) (20... e4 $5 21. Nxe4 (21. Qxe4 Bc6 $17) (21. Rxd8+ Bxd8 22. Nxe4 Bc7 $15) 21... Nc4 $15) 21. Nxe5 {[%emt 0:02:03]} (21. Rxd8+ {simplifies} Bxd8 22. Nxe5 Nc4 23. Nxc4 bxc4 24. Bg2) 21... Nc6 {[%emt 0:00:00]} 22. Bg2 {[%emt 0:05:09]} Nxe5 {[%emt 0:00:00]} 23. fxe5 {[%emt 0:02:47]} (23. Qxe5 Qxe5 24. fxe5 Rxd1+ 25. Kxd1 Rg8 $15) (23. Rxd8+ {simplifies} Bxd8 24. fxe5 h6 25. Nf3) 23... h6 {[%emt 0:00:00]} 24. Rxd8+ {[%emt 0:10:12]} Bxd8 {[%emt 0:00:00]} 25. Nf3 {[%emt 0:00:05]} Bc6 {[%emt 0:00:00]} 26. Rd1 {[%emt 0:03:17]} (26. Nd4 $5 {[%cal Rd4c6]} Bxg2 27. Qxg2 $11) 26... Rg8 {[%emt 0:00:00]} 27. Bh1 {[%emt 0:00:01]} (27. a3 $15) 27... Qb7 $17 {[%emt 0:00:00]} 28. Qe3 {[%emt 0:04:06]} Bb6 {[%emt 0:00:00] A strong pair of Bishops.} 29. Qf4 {[%emt 0:00:01]} (29. Qe2 $17) 29... Rc8 {[%emt 0:00:00] White must now prevent ...Be4.} 30. Bg2 {[%emt 0:00:40]} a5 {[%emt 0:00:00]} (30... h5 $19 {is more deadly. Strongly threatening ...Be4.} 31. a3 Be4) 31. Qg4 {[%emt 0:01:39]} Qc7 {[%emt 0:00:00]} ({Black should try} 31... h5 $17 32. Qg3 a4) 32. Ne1 $1 $15 {[%emt 0:01:36][%cal Bf3e1,Be1d3,Bd3e5][%mdl 32]} Bxg2 {[%emt 0:00:00]} (32... Qxe5 {keeps more tension.} 33. Bxc6 Rxc6 34. Qg2 Rc8) 33. Qxg2 {[%emt 0:00:02]} Qxe5 {[%emt 0:00:00]} 34. Nd3 {[%emt 0:00:03] Inhibits Qf4+.} Qc7 {[%emt 0:00:00]} (34... Qd4 $17 35. Kb1 Qxh4) 35. Kb1 {[%emt 0:02:56]} Rd8 {[%emt 0:00:00]} ({Black should play} 35... Qc6 $15 36. Qh2+ Bc7) 36. a3 {[%emt 0:00:31]} Bd4 {[%emt 0:00:00]} 37. Qe4 {[%emt 0:00:59]} Bg7 {[%emt 0:02:01]} 38. Rg1 {[%emt 0:02:24]} Bf8 {[%emt 0:02:49]} 39. Ne5 {[%emt 0:01:28] Hoping for Nc6+.} Rc8 {[%emt 0:01:08]} 40. Rd1 {[%emt 0:00:48] Rd7 is the strong threat.} f5 $2 {[%emt 0:06:44][%mdl 8192]} (40... Bd6 $1 $11 41. Nxf7 Bxa3) 41. Qe2 $18 {[%emt 0:30:10]} Bd6 {[%emt 0:07:14]} (41... Bg7 $2 42. Qxb5+ Qb7 43. Qxa5 Bxe5 44. Qxe5+ Qc7 45. Qb5+ (45. Qxe6 Qxc2+ 46. Ka2 Qxd1 $11) 45... Qb7 46. Qa4 $18) 42. Qxb5+ {[%emt 0:00:00]} Ka7 {[%emt 0:00:10] [#]} 43. c3 {[%emt 0:00:00]} f4 {[%emt 0:04:27] [#]} 44. Nf7 $1 {[%emt 0:00:00][%mdl 512] Inhibits f3.} Qxf7 {[%emt 0:02:57]} 45. Qxa5+ {[%emt 0:00:00]} ({Weaker is} 45. Rxd6 Qf5+ 46. Qxf5 exf5 $18) 45... Kb7 {[%emt 0:00:08]} 46. Rxd6 {[%emt 0:00:00]} Qf5+ {[%emt 0:00:11]} 47. Qxf5 {[%emt 0:00:00]} exf5 {[%emt 0:00:02][%mdl 4096] Endgame KR-KR} 48. Rd4 {[%emt 0:00:00]} (48. Rxh6 $2 {is the wrong capture.} f3 49. Rf6 Rc5 $19) 48... Rg8 {[%emt 0:01:08]} 49. Rxf4 {[%emt 0:00:00] White is clearly winning.} Rg4 {[%emt 0:00:05]} (49... Rf8 $142 50. b4 Kc7) 50. Rxf5 {[%emt 0:00:00]} Rxh4 {[%emt 0:00:02]} 51. Ka2 {[%emt 0:00:00]} Rh2 {[%emt 0:00:17]} 52. Kb3 {[%emt 0:00:00] Threatens to win with Rf6.} h5 {[%emt 0:00:05]} 53. a4 {[%emt 0:00:00]} h4 {[%emt 0:00:05]} 54. Rh5 {[%emt 0:00:00]} h3 {[%emt 0:00:08]} 55. c4 {[%emt 0:00:00]} Rh1 {[%emt 0:00:08]} 56. Kb4 {[%emt 0:00:00]} h2 {[%emt 0:00:14]} 57. Kb5 {[%emt 0:00:00] White used his chance.   Weighted Error Value: White=0.14 (very precise) /Black=0.37} 1-0

[Event "Israeli Championship 2022"]
[Site "Yosiah Arad"]
[Date "2022.12.10"]
[Round "6.8"]
[White "Postny, Evgeny"]
[Black "Streltsov, Alexey"]
[Result "1/2-1/2"]
[ECO "D27"]
[WhiteElo "2588"]
[BlackElo "2313"]
[Annotator "TA"]
[PlyCount "86"]
[EventDate "2022.12.05"]
[EventType "swiss"]
[EventCountry "ISR"]
[SourceTitle "playchess.com"]
[Source "ChessBase"]
[SourceQuality "1"]
[TimeControl "40/5400+30:1800+30"]

{[%evp 11,86,30,25,10,18,16,6,0,0,7,2,7,48,49,27,40,55,34,94,54,141,141,176,169,147,74,62,72,95,96,89,93,98,75,72,77,77,66,77,43,70,45,34,40,35,42,36,41,26,27,29,0,5,0,0,0,0,0,0,0,0,0,0,0,73,69,72,0,0,0,76,0,0,0,0,0,0]} 1. d4 {[%emt 0:00:04]} d5 {[%emt 0:00:05]} 2. Nf3 {[%emt 0:00:10]} Nf6 {[%emt 0:00:06]} 3. c4 {[%emt 0:00:12]} dxc4 {[%emt 0:00:07]} 4. e3 {[%emt 0:00:12]} e6 {[%emt 0:00:06]} 5. Bxc4 {[%emt 0:00:06]} c5 {[%emt 0:00:08]} 6. O-O {[%emt 0:00:12]} a6 {[%emt 0:00:06]} 7. Re1 {[%emt 0:00:51] D27: Queen's Gambit Accepted: Classical main line: 7 e4!? and 7 a4.} b5 {[%emt 0:00:20]} 8. Bf1 {[%emt 0:00:07]} cxd4 {[%emt 0:02:36]} 9. Nxd4 {[%emt 0:04:36]} Bb7 {[%emt 0:12:16]} 10. a4 {[%emt 0:01:16]} b4 {[%emt 0:02:33]} 11. Nd2 {[%emt 0:08:22][%cal Bb1d2,Bd2c4,Bc4e5,Be5d7][%mdl 32] [#]} Nc6 $146 {[%emt 0:02:39]} ({Predecessor:} 11... Be7 12. Nc4 O-O 13. f3 Qc7 14. Qe2 Nc6 15. Nxc6 Bxc6 16. e4 Nd7 17. b3 Nb6 18. Nxb6 Qxb6+ {1-0 (29) Nikolaidis,I (2529)-Gavrilakis,N (2426) Rhodes 2008}) 12. Nxc6 {[%emt 0:07:31]} Bxc6 {[%emt 0:00:06]} 13. Nc4 {[%emt 0:00:45]} Qxd1 {[%emt 0:06:02]} 14. Rxd1 {[%emt 0:00:17]} Ne4 {[%emt 0:00:15]} ({Black should try} 14... Bc5 $14) 15. Bd2 {[%emt 0:10:32]} a5 {[%emt 0:05:22]} (15... Nxd2 $1 $14 16. Rxd2 Bc5) 16. Ne5 $1 $16 {[%emt 0:02:16]} Bd5 {[%emt 0:00:50]} 17. Bb5+ {[%emt 0:01:14]} Ke7 {[%emt 0:00:14]} 18. f3 {[%emt 0:09:11] Inhibits f6.} (18. Be1 $142) 18... Nxd2 {[%emt 0:25:22]} 19. Rxd2 {[%emt 0:00:07] aiming for e4.} f6 {[%emt 0:00:09]} 20. Nd7 {[%emt 0:10:27] And now e4 would win.} Kf7 {[%emt 0:13:13]} 21. Rc1 {[%emt 0:12:06][%cal Ba1c1,Bc1c6,Bc6a6][%mdl 32] Prevents Rc8. White has more active pieces.} Bd6 {[%emt 0:11:12]} 22. Nb6 {[%emt 0:04:06][%csl LRa8,LRd5] Inhibits Rhc8.} Rad8 {[%emt 0:00:06]} 23. Nxd5 {[%emt 0:00:10]} exd5 {[%emt 0:00:43]} 24. Rc6 {[%emt 0:11:28]} Ke7 {[%emt 0:04:49]} 25. Ra6 {[%emt 0:04:12]} (25. Rxd5 Bxh2+ $1 26. Kxh2 Rxd5 27. Rc7+ Kd6 28. Rc6+ Ke5 $17) 25... Bc5 {[%emt 0:00:31] Prevents Ra7+.} 26. Kf1 {[%emt 0:08:39]} (26. Rxa5 $2 {is the wrong capture.} Bxe3+ 27. Rf2 Rc8 $19) 26... Bxe3 {[%emt 0:02:40]} 27. Re2 {[%emt 0:00:06]} d4 {[%emt 0:00:06]} 28. Rxa5 {[%emt 0:00:09]} Rc8 {[%emt 0:02:36]} 29. Ra7+ {[%emt 0:00:06]} Kd6 $1 {[%emt 0:00:37]} 30. Rd7+ {[%emt 0:00:20]} Ke5 $1 {[%emt 0:00:30]} 31. g3 {[%emt 0:00:54]} g5 {[%emt 0:03:57] Prevents f4+.} 32. Kg2 {[%emt 0:00:47]} h5 {[%emt 0:00:22]} 33. a5 {[%emt 0:01:52]} Rc5 {[%emt 0:01:47]} 34. Re7+ {[%emt 0:00:40]} Kd6 {[%emt 0:00:02]} 35. Rd7+ {[%emt 0:00:45]} Ke5 {[%emt 0:00:02]} 36. Re7+ {[%emt 0:01:17]} Kd6 {[%emt 0:00:01]} 37. Rb7 {[%emt 0:00:07][%cal Of3f4]} g4 {[%emt 0:00:04]} (37... h4 $11 38. h3 hxg3) 38. Rd7+ {[%emt 0:00:20]} Ke5 {[%emt 0:00:27]} 39. Re7+ {[%emt 0:00:27]} (39. Bd3 $5 {[%cal Rf3f4]} gxf3+ 40. Kxf3 $14) 39... Kd6 {[%emt 0:00:04]} 40. Rd7+ {[%emt 0:00:07]} Ke5 {[%emt 0:00:01] [#]} 41. f4+ {[%emt 0:12:59]} (41. Bd3 $1 $16 {Threatens to win with f4+.} Rc1 42. h4 (42. f4+ $2 Ke6 $19) 42... Rg1+ 43. Kh2 gxf3 44. Rc2 (44. Rxe3+ dxe3 45. Kxg1 Rc8 $11)) 41... Ke4 $11 {[%emt 0:02:56] The position is equal.} 42. Re7+ {[%emt 0:00:28]} Kd5 {[%emt 0:00:10]} 43. Rd7+ {[%emt 0:06:53]} Ke4 {[%emt 0:00:11] Weighted Error Value: White=0.11 (very precise) /Black=0.12 (very precise)} 1/2-1/2

[Event "Israeli Championship 2022"]
[Site "Yosiah Arad"]
[Date "2022.12.10"]
[Round "6.9"]
[White "Shohat, Yotam"]
[Black "Mikhalevski, Victor"]
[Result "0-1"]
[ECO "B96"]
[WhiteElo "2294"]
[BlackElo "2517"]
[Annotator "TA"]
[PlyCount "98"]
[EventDate "2022.12.05"]
[EventType "swiss"]
[EventCountry "ISR"]
[SourceTitle "playchess.com"]
[Source "ChessBase"]
[SourceQuality "1"]
[TimeControl "40/5400+30:1800+30"]

{[%evp 16,98,11,6,0,1,13,0,10,0,29,4,10,6,37,0,33,27,41,25,36,43,39,33,38,0,0,0,22,0,0,0,0,0,0,0,0,0,0,0,0,0,0,-15,-23,-9,0,0,0,0,0,0,0,0,0,0,0,-27,-27,-867,-863,-848,-848,-841,-650,-29971,-29972,-29972,-29972,-29972,-29974,-29973,-29975,-29975,-29976,-29976,-29977,-29977,-29978,-29978,-29979,-29979,-29980,-29980,-29980]} 1. e4 {[%emt 0:00:03]} c5 {[%emt 0:02:59]} 2. Nf3 {[%emt 0:00:06]} d6 {[%emt 0:00:05]} 3. d4 {[%emt 0:04:15]} cxd4 {[%emt 0:00:33]} 4. Nxd4 {[%emt 0:00:04]} Nf6 {[%emt 0:00:05]} 5. Nc3 {[%emt 0:00:03]} a6 {[%emt 0:00:12]} 6. Bg5 {[%emt 0:01:21]} e6 {[%emt 0:02:37]} 7. f4 {[%emt 0:00:06]} h6 {[%emt 0:00:22]} 8. Bh4 {[%emt 0:00:41]} Qb6 {[%emt 0:00:04]} 9. a3 {[%emt 0:05:44]} Nc6 {[%emt 0:03:43] B96: Sicilian Najdorf: 6 Bg5 e6 7 f4, lines other than 7...Qb6 and 7...Be7.} (9... Qxb2 $2 10. Na4 $18) 10. Bf2 {[%emt 0:01:38][%cal Od4e6]} Qc7 {[%emt 0:02:31]} (10... Qxb2 $2 11. Na4 $18) 11. Be2 {[%emt 0:02:27]} Be7 {[%emt 0:02:24] The position is equal.} 12. Qd3 {[%emt 0:02:53]} Bd7 {[%emt 0:16:21]} 13. O-O {[%emt 0:03:57]} O-O {[%emt 0:05:43]} 14. Rad1 {[%emt 0:03:01] [#]} Rad8 $146 {[%emt 0:01:43]} ({Predecessor:} 14... Rac8 15. Nb3 b5 16. Qg3 Qb8 17. Be3 b4 18. axb4 Nxb4 19. e5 Nfd5 20. Nxd5 Nxd5 21. Rxd5 exd5 {½-½ (39) Boettcher,F (2286)-Orsolic,M (2179) LSS email 2007}) 15. Qg3 {[%emt 0:09:44]} d5 {[%emt 0:16:41]} 16. e5 {[%emt 0:04:02]} Ne4 {[%emt 0:00:31]} 17. Nxe4 {[%emt 0:00:41]} dxe4 {[%emt 0:00:04]} 18. c3 {[%emt 0:03:40]} f6 {[%emt 0:10:53]} 19. exf6 {[%emt 0:03:39]} Bxf6 {[%emt 0:01:13]} 20. Bg4 {[%emt 0:05:39]} (20. Nb3 {feels hotter.} Ne7 21. Nc5 Nf5 22. Qh3) 20... Nxd4 {[%emt 0:11:45]} 21. Bxd4 {[%emt 0:00:21]} Bb5 {[%emt 0:00:20]} 22. Bxe6+ {[%emt 0:26:02]} Kh8 {[%emt 0:00:04]} 23. Rfe1 {[%emt 0:02:36] f5 is the strong threat.} Bxd4+ {[%emt 0:06:30]} 24. Rxd4 {[%emt 0:06:50]} Rxd4 {[%emt 0:03:39]} 25. cxd4 {[%emt 0:00:02]} Rxf4 {[%emt 0:06:48]} 26. Qe3 {[%emt 0:01:32]} Bd3 {[%emt 0:00:44]} 27. Rc1 {[%emt 0:08:34]} Rf8 {[%emt 0:00:21]} 28. d5 {[%emt 0:04:16]} (28. Rxc7 $2 Rf1#) (28. Qxh6+ gxh6 29. Ra1 Qf4 30. h4 e3 31. Bh3 Qg3 32. Rc1 e2) 28... Qc2 {[%emt 0:02:41]} 29. h3 {[%emt 0:00:30]} Qxb2 $40 {[%emt 0:00:07][%mdl 128] Black has some attack.} 30. Qc5 {[%emt 0:00:26]} Qf6 {[%emt 0:01:02]} 31. Qxf8+ $1 {[%emt 0:00:30][%mdl 64] Remove Defender} Qxf8 {[%emt 0:00:04]} 32. Rc8 {[%emt 0:00:04]} Qxc8 {[%emt 0:00:02]} 33. Bxc8 $11 {[%emt 0:00:03][%cal Od5d6][%mdl 4096] Endgame KB-KB} Kg8 $1 {[%emt 0:00:13]} 34. Bxb7 {[%emt 0:01:25]} e3 {[%emt 0:00:21] White must now prevent ...Kf7.} 35. d6 {[%emt 0:00:32] White threatens d7 and mate.} Kf7 {[%emt 0:00:07] Threatens to win with ...Ke6.} 36. Bd5+ {[%emt 0:00:30]} Kf6 {[%emt 0:00:01] aiming for ...Bb5.} 37. d7 $2 {[%emt 0:00:28][%mdl 8192] This move loses the game for White.} (37. Bc6 $11) 37... Ke7 $19 {[%emt 0:00:08]} 38. Bc6 {[%emt 0:00:30]} Bf5 {[%emt 0:00:42]} 39. Kf1 {[%emt 0:00:33]} Bxd7 {[%emt 0:00:05]} 40. Bxd7 {[%emt 0:00:31]} Kxd7 {[%emt 0:00:01] KP-KP. Black mates.} 41. Ke2 {[%emt 0:05:37] [#]} Kc6 $1 {[%emt 0:01:20]} 42. Kxe3 {[%emt 0:00:56] [#] K3P-K3P} Kb5 $1 {[%emt 0:00:05]} 43. Kd4 {[%emt 0:00:38]} Ka4 {[%emt 0:00:05]} 44. Kc5 {[%emt 0:00:26]} Kxa3 {[%emt 0:00:07]} 45. Kb6 {[%emt 0:00:03]} Kb4 {[%emt 0:00:06]} 46. Kxa6 {[%emt 0:00:07]} Kc5 {[%emt 0:00:15]} 47. Kb7 {[%emt 0:00:11]} Kd4 {[%emt 0:00:25]} 48. Kc6 {[%emt 0:00:04]} Ke3 {[%emt 0:00:04]} 49. Kd5 {[%emt 0:01:04]} Kf2 {[%emt 0:00:09] Weighted Error Value: White=0.33/Black=0.03 (flawless)} 0-1

[Event "Israeli Championship 2022"]
[Site "Yosiah Arad"]
[Date "2022.12.10"]
[Round "6.10"]
[White "Levin, Guy"]
[Black "Tzidkiya, Yeshaayahu"]
[Result "1-0"]
[ECO "B31"]
[WhiteElo "2382"]
[BlackElo "2444"]
[Annotator "TA"]
[PlyCount "99"]
[EventDate "2022.12.05"]
[EventType "swiss"]
[EventCountry "ISR"]
[SourceTitle "playchess.com"]
[Source "ChessBase"]
[SourceQuality "1"]
[TimeControl "40/5400+30:1800+30"]

{[%evp 13,99,20,28,28,24,20,26,22,31,29,29,27,53,54,62,59,61,52,68,70,70,13,13,13,21,22,25,0,0,0,0,0,0,0,0,0,0,0,0,-6,-9,-11,-15,-9,15,12,19,53,49,52,153,153,182,128,330,294,362,362,344,329,687,641,866,850,850,806,689,768,1745,1385,1385,1221,1191,1143,2790,379,1525,1090,5222,5214,29963,29964,29963,29964,29973,29974,29975,29976]} 1. e4 {[%emt 0:00:04]} c5 {[%emt 0:00:25]} 2. Nf3 {[%emt 0:00:07]} Nc6 {[%emt 0:00:03]} 3. Bb5 {[%emt 0:00:06]} g6 {[%emt 0:00:04]} 4. Nc3 {[%emt 0:00:11]} Bg7 {[%emt 0:00:08]} 5. O-O {[%emt 0:00:08]} Nd4 {[%emt 0:03:20]} 6. Nxd4 {[%emt 0:00:25]} cxd4 {[%emt 0:00:03]} 7. Ne2 {[%emt 0:00:09]} a6 {[%emt 0:02:10]} 8. Ba4 {[%emt 0:00:11] B31: Sicilian: 2...Nc6 3 Bb5 g6.} b5 {[%emt 0:02:56]} 9. Bb3 {[%emt 0:00:07]} Bb7 {[%emt 0:00:02]} 10. d3 {[%emt 0:00:09] White has an edge.} d5 {[%emt 0:01:41]} 11. f3 {[%emt 0:00:16]} e6 {[%emt 0:03:58]} 12. Qe1 {[%emt 0:00:39]} Ne7 {[%emt 0:01:58]} 13. Qh4 {[%emt 0:11:15] [#]} a5 $146 {[%emt 0:17:33] [#] Strongly threatening ...a4.} ({Predecessor:} 13... dxe4 14. fxe4 Nc6 15. Bg5 Qd6 16. Rf3 h6 17. Bf6 Bxf6 18. Qxf6 Rh7 19. Bd5 Rd8 20. Bxc6+ Bxc6 {1-0 (36) Karjakin,S (2760)-Soumya,S (2423) Douglas 2018}) 14. a4 $1 {[%emt 0:01:35]} b4 {[%emt 0:00:08]} 15. Bh6 {[%emt 0:08:17]} O-O {[%emt 0:07:55]} 16. Bxg7 {[%emt 0:32:24]} Kxg7 {[%emt 0:00:24]} 17. e5 {[%emt 0:11:08] White is much more active.} (17. Nxd4 dxe4 18. Kh1 exd3 19. cxd3 Nc6 20. Qxd8 Rfxd8 21. Nxc6 Bxc6 $15) (17. Qg3 $14) 17... Nc6 $11 {[%emt 0:00:31][%csl LRe5,LRh4]} 18. Qg3 {[%emt 0:03:06]} (18. Qxd8 {simplifies} Raxd8 19. f4 h5 20. g3) 18... Qc7 {[%emt 0:01:54]} 19. f4 {[%emt 0:00:25]} f6 {[%emt 0:00:11]} 20. Rae1 {[%emt 0:09:28]} fxe5 {[%emt 0:01:39]} 21. fxe5 {[%emt 0:00:05][%cal Of1f6] [#] Rf6! is the strong threat.} Rxf1+ {[%emt 0:04:52]} 22. Rxf1 {[%emt 0:00:23]} Rf8 {[%emt 0:24:37] Against Qf4} 23. Rf6 {[%emt 0:08:55]} Re8 {[%emt 0:00:26]} 24. Qf2 {[%emt 0:02:37]} (24. Qf4 $5 {[%cal Rh2h4]}) 24... Nxe5 {[%emt 0:00:44]} 25. Rf4 {[%emt 0:02:34] Against Ng4} Nc6 {[%emt 0:13:22]} 26. Nxd4 {[%emt 0:00:03]} (26. Qh4 Qe7 27. Qxe7+ Rxe7 28. Nxd4 Nxd4 29. Rxd4 e5 $17) 26... Nxd4 {[%emt 0:07:57]} 27. Qxd4+ {[%emt 0:00:01]} e5 {[%emt 0:00:10]} 28. Qe3 {[%emt 0:00:04]} Rc8 {[%emt 0:04:45]} 29. Rf2 {[%emt 0:00:38]} Rf8 {[%emt 0:00:28] Against Qf3} 30. Rxf8 {[%emt 0:00:44]} Kxf8 {[%emt 0:00:03][%mdl 4096] Endgame KQB-KQB} 31. Qa7 $1 {[%emt 0:00:10] aiming for Bxd5.} Qe7 {[%emt 0:00:09]} ({Better is} 31... e4 $14) 32. Qxa5 $16 {[%emt 0:01:02]} e4 {[%emt 0:00:13]} 33. dxe4 {[%emt 0:00:23]} (33. Bxd5 exd3 34. h3 dxc2 35. Bxb7 c1=Q+ 36. Kh2 Qd6+ 37. g3 Qe3 38. Qa8+ Kg7) (33. c3 $18) 33... dxe4 $2 {[%emt 0:00:48] This costs Black the game.} (33... Qxe4 $16 {was called for.} 34. Qc5+ (34. Qd8+ Kf7 $16) 34... Ke8) 34. c3 $18 {[%emt 0:00:10]} bxc3 {[%emt 0:01:19]} 35. Qxc3 {[%emt 0:00:01][%cal Rc3h8]} Ke8 {[%emt 0:00:17]} 36. Qc4 {[%emt 0:02:14]} e3 $2 {[%emt 0:00:21]} (36... Kd7 37. Qf7 Qxf7 38. Bxf7 Kd6) 37. Qe6 {[%emt 0:00:42]} ({Weaker is} 37. Qb5+ Kf8 38. Qf1+ (38. Qc4 Ke8 $18) 38... Kg7 $16) 37... Qxe6 {[%emt 0:00:51]} 38. Bxe6 {[%emt 0:00:01] KB-KB} Ke7 {[%emt 0:00:08]} 39. Bc4 {[%emt 0:00:36]} Kd6 {[%emt 0:00:20]} 40. b4 {[%emt 0:00:52]} Ke5 {[%emt 0:00:12]} 41. a5 {[%emt 0:31:05][%cal Ba4a5,Ba5a6][%mdl 32]} Kd4 {[%emt 0:30:05] Prevents a6.} 42. a6 {[%emt 0:01:03]} Be4 {[%emt 0:00:00]} 43. Be2 {[%emt 0:00:00] Threatens to win with b5.} Bd5 {[%emt 0:00:00]} 44. Kf1 $2 {[%emt 0:00:00]} (44. b5 {b6 would kill now.} Kc5 45. Bf3 Kxb5 46. a7) 44... g5 $2 {[%emt 0:00:00]} (44... Be4 45. a7 Kc3) 45. Kg1 {[%emt 0:00:00] Hoping for b5.} g4 {[%emt 0:00:00]} 46. Bxg4 {[%emt 0:00:00]} Kc4 {[%emt 0:00:00]} 47. b5 {[%emt 0:00:00] White mates.} Kxb5 {[%emt 0:00:00]} 48. Bf3 {[%emt 0:00:00]} Bxf3 {[%emt 0:00:00]} 49. gxf3 {[%emt 0:00:00]} Kxa6 {[%emt 0:00:00]} 50. Kf1 {[%emt 0:00:00] Weighted Error Value: White=0.16 (very precise) /Black=0.46} 1-0